Cogmind - Beta 11 X4 @@@ ROGUE MODE // 2021.06.03 @ 20:42:11 Player: rusmal Result: Destroyed by D-53 Grenadier with Mini Grenade Launcher Performance ------------- Evolutions (0) 0 Regions Visited (4) 800 Robots Destroyed (27) 135 Value Destroyed (498) 498 Prototype IDs (2) 40 Alien Tech Used (0) 0 Bonus (6) 6 TOTAL SCORE: 1479 Bonus ------- Follower Combat Kills 151 Friendly Fire -145 Cogmind --------- Core Integrity 0/250 Matter 161/300 Energy 160/160 System Corruption 0% Temperature Warm (135) Movement Treading (160) Location -9/Mines Parts ------- > --- POWER (1) -------- Light Nuclear Core > --- PROPULSION (2) --- Improved Treads Improved Treads > --- UTILITY (2) ------ Large Storage Unit Hardened Light Armor Plating > --- WEAPON (2) ------- Improved Light Cannon Rocket Launcher > --- INVENTORY (15) --- Ion Engine Improved Treads Improved Heat Sink Medium Storage Unit Hardened Light Armor Plating Hacking Suite Hacking Suite Heavy EM Pulse Gun Heavy EM Pulse Gun Improved Light Cannon Makeshift Hammer Peak State ------------ > --- POWER ------------ Light Nuclear Core > --- PROPULSION ------- Improved Treads Improved Treads > --- UTILITY ---------- Large Storage Unit Hardened Light Armor Plating > --- WEAPON ----------- Improved Light Cannon Rocket Launcher > --- INVENTORY -------- Ion Engine Improved Treads Improved Heat Sink Medium Storage Unit Hardened Light Armor Plating Hardened Light Armor Plating Hacking Suite Hacking Suite Heavy EM Pulse Gun Heavy EM Pulse Gun Improved Light Cannon Makeshift Hammer [Rating: 16] Favorites ----------- Power Ion Engine Engine Ion Engine Power Core Light Nuclear Core Propulsion Improved Treads Treads Improved Treads Leg Aluminum Leg Utility Large Storage Unit Storage Large Storage Unit Protection Hardened Light Armor Plating Weapon Assault Rifle Ballistic Gun Assault Rifle Ballistic Cannon Improved Light Cannon Launcher Grenade Launcher Build | -11 -10 -10 -10 -9 ------- Run | Scr Mat Min Exi Min Slots Evolved . | . . . . . Power . | . . . . . Propulsion . | . . . . . Utility . | . . . . . Weapon . | . . . . . Parts Attached 18 | 6 7 1 . 4 Power 2 | 1 . 1 . . Engine 1 | 1 . . . . Core 1 | . . 1 . . Reactor . | . . . . . Propulsion 5 | 2 2 . . 1 Treads 3 | . 2 . . 1 Leg 2 | 2 . . . . Wheel . | . . . . . Hover . | . . . . . Flight . | . . . . . Utility 5 | 1 3 . . 1 Device . | . . . . . Storage 2 | 1 1 . . . Processor . | . . . . . Hackware . | . . . . . Protection 3 | . 2 . . 1 Artifact . | . . . . . Weapon 6 | 2 2 . . 2 Energy Gun . | . . . . . Energy Cannon . | . . . . . Ballistic Gun 3 | 2 1 . . . Ballistic Cannon 1 | . . . . 1 Launcher 2 | . 1 . . 1 Special Weapon . | . . . . . Impact Weapon . | . . . . . Slashing Weapon . | . . . . . Piercing Weapon . | . . . . . Special Melee Weapon . | . . . . . Unidentified Prototypes . | . . . . . Parts Lost 4 | . . . . 4 Power . | . . . . . Propulsion 1 | . . . . 1 Utility 1 | . . . . 1 Weapon 2 | . . . . 2 Highest Loss Streak 4 | . . . . 4 Average Slot Usage (%) 98 | . 96 100 100 100 Engine 7 | . 14 6 . . Core 6 | . . 7 14 14 Treads 27 | . 26 28 28 28 Storage 14 | . 14 14 14 14 Protection 12 | . 10 14 14 14 Ballistic Gun 19 | . 27 14 14 13 Launcher 8 | . . 14 14 13 Naked Turns . | . . . . . Heaviest Build 35 | 14 35 35 35 35 Greatest Support 46 | 20 46 46 46 46 Greatest Overweight (x) 4 | . 4 . . . Average Overweight (x) . | . . . . . Largest Inventory Capacity 15 | 8 15 15 15 15 Average Capacity 14 | 7 13 15 15 15 Most Carried 15 | 6 15 15 15 15 Average Carried 13 | 3 11 14 15 14 Final Capacity 15 | 8 15 15 15 15 Final Carried 15 | 6 15 15 15 11 Class Distribution -------------------- 100% | Mutant Dominant Class ---------------- Mutant | -10/Materials Mutant | -10/Mines Mutant | -10/Exiles Mutant | -9/Mines Resources | -11 -10 -10 -10 -9 ----------- Run | Scr Mat Min Exi Min Matter Collected 740 | 254 306 120 . 60 Remotely . | . . . . . Salvage Created 532 | . 364 105 . 63 Parts 45 | . 22 12 . 11 Haulers Intercepted 2 | . 2 . . . Recyclers Shooed . | . . . . . Parts Field Recycled . | . . . . . Retrieved Matter . | . . . . . Parts Self-Destructed . | . . . . . Prevented . | . . . . . Kills | -11 -10 -10 -10 -9 ------- Run | Scr Mat Min Exi Min Combat Hostiles Destroyed 30 | . 9 7 . 14 Guns 9 | . 9 . . . Cannons 1 | . . . . 1 AOE 20 | . . 7 . 13 Classes Destroyed 6 | . 4 . . 2 Tunneler 1 | . . . . 1 Hauler 2 | . 2 . . . Operator 2 | . 2 . . . Swarmer 15 | . 6 3 . 6 Grunt 7 | . 3 4 . . Assembled 8 | . . . . 8 Best Kill Streak 8 | . 3 3 . 8 Combat Bots Only 8 | . 3 3 . 8 Max Kills in Single Turn 3 | . 1 3 . 3 Gunslinging . | . . . . . Exploded 3 | . . 3 . 3 Melee . | . . . . . Uniques/NPCs Destroyed . | . . . . . Combat | -11 -10 -10 -10 -9 -------- Run | Scr Mat Min Exi Min Damage Taken 1329 | . 277 77 . 975 Core 270 | . 46 27 . 197 Absorbed by Shields . | . . . . . Core Remaining (%) 100 | 100 . . . . Volleys Fired 67 | . 40 10 . 17 Largest 2 | . 2 1 . 2 Hottest 72 | . 40 30 . 72 Shots Fired 112 | . 80 10 . 22 Gun 82 | . 80 . . 2 Cannon 5 | . . . . 5 Launcher 25 | . . 10 . 15 Special . | . . . . . Kinetic 87 | . 80 . . 7 Thermal . | . . . . . Explosive 25 | . . 10 . 15 Electromagnetic . | . . . . . Robot Hit Streak 9 | . 9 3 . 8 Robot Miss Streak 3 | . 3 1 . 2 Penetration Max . | . . . . . Secondary Targets . | . . . . . Shots Hit Robots 66 | . 52 2 . 12 Core Hits 68 | . 21 11 . 36 Critical Kills . | . . . . . Critical Parts Destroyed 1 | . 1 . . . Critical Strikes 1 | . 1 . . . Destroy 1 | . 1 . . . Melee Attacks . | . . . . . Impact . | . . . . . Slashing . | . . . . . Piercing . | . . . . . Sneak Attacks . | . . . . . Combat Hostiles . | . . . . . Follow-up Attacks . | . . . . . Damage Inflicted 2467 | . 664 539 . 1264 Guns 675 | . 664 . . 11 Cannons 60 | . . . . 60 Explosions 1732 | . . 539 . 1193 Melee . | . . . . . Ramming . | . . . . . Kinetic 735 | . 664 . . 71 Thermal . | . . . . . Explosive 1732 | . . 539 . 1193 Electromagnetic . | . . . . . Impact . | . . . . . Slashing . | . . . . . Piercing . | . . . . . Highest Corruption . | . . . . . Average Corruption . | . . . . . Corruption Purged . | . . . . . Overload Shots . | . . . . . Overflow Damage 83 | . . 23 . 60 Projectiles . | . . . . . Explosions 83 | . . 23 . 60 Melee . | . . . . . Knockbacks 2 | . . . . 2 Impact . | . . . . . Kinetic 2 | . . . . 2 Secondary . | . . . . . Self-Inflicted Damage 135 | . . . . 135 Shots 6 | . . . . 6 Rammed . | . . . . . Targets Rammed 1 | . . . . 1 Kicked . | . . . . . Crushed 1 | . . . . 1 Highest Temperature 137 | . 7 24 . 137 Average Temperature 35 | . 3 17 . 50 Received Heat Transfer 165 | . 54 45 . 66 Siege Activations . | . . . . . Robots Corrupted . | . . . . . Combat Hostiles . | . . . . . Parts Fried . | . . . . . Impact Corruptions . | . . . . . Robots Melted . | . . . . . Combat Hostiles . | . . . . . Parts Melted . | . . . . . Heat Transferred . | . . . . . Parts Sabotaged . | . . . . . Parts Stolen . | . . . . . Parts Stripped . | . . . . . Power Chain Reactions . | . . . . . Missiles Intercepted . | . . . . . Alert | -11 -10 -10 -10 -9 ------- Run | Scr Mat Min Exi Min Peak Influence 248 | . 157 209 . 248 Initial 9 | . . 9 . . Average 86 | . 48 91 . 164 Maximum Alert Level 1 | . . 1 . 1 Low Security (%) 83 | 100 100 81 . 50 Level 1 16 | . . 18 . 50 Level 2 . | . . . . . Level 3 . | . . . . . Level 4 . | . . . . . Level 5 . | . . . . . High Security . | . . . . . Max Security . | . . . . . Squads Dispatched . | . . . . . Investigation . | . . . . . Extermination . | . . . . . Reinforcement . | . . . . . Assault . | . . . . . Garrison . | . . . . . Intercept . | . . . . . Construction Impeded . | . . . . . Haulers Reinforced . | . . . . . Cargo Convoy Interrupts . | . . . . . Stealth | -11 -10 -10 -10 -9 --------- Run | Scr Mat Min Exi Min Distress Signals 3 | . 3 . . . Communications Jammed . | . . . . . Distress Signals . | . . . . . Times Spotted 57 | . 25 7 . 25 Peak Tracking Total 8 | . 4 2 . 8 Tactical Retreats 7 | . 4 . . 3 Traps | -11 -10 -10 -10 -9 ------- Run | Scr Mat Min Exi Min Traps Triggered . | . . . . . Indirectly . | . . . . . Trap Hack Attempts . | . . . . . Triggered . | . . . . . Disarmed . | . . . . . Reprogrammed . | . . . . . Reused . | . . . . . Traps Extracted . | . . . . . Installed . | . . . . . Triggered . | . . . . . Machines | -11 -10 -10 -10 -9 ---------- Run | Scr Mat Min Exi Min Machines Disabled 6 | . . 3 . 3 Max in Single Turn 1 | . . 1 . 1 Machines Sabotaged . | . . . . . Garrisons Compromised . | . . . . . Overloaded Fab Kills . | . . . . . Fab Network Shutdowns . | . . . . . Hacking | -11 -10 -10 -10 -9 --------- Run | Scr Mat Min Exi Min Machines Accessed 10 | . 9 . 1 . Terminals 7 | . 7 . . . Fabricators . | . . . . . Repair Stations . | . . . . . Recycling Units 2 | . 2 . . . Scanalyzers . | . . . . . Garrison Access . | . . . . . Total Hacks 19 | . 18 . 1 . Successful 8 | . 7 . 1 . Failed 11 | . 11 . . . Catastrophic 1 | . 1 . . . Database Lockouts . | . . . . . Manual 14 | . 14 . . . Terminals 16 | . 16 . . . Fabricators . | . . . . . Repair Stations . | . . . . . Recycling Units 2 | . 2 . . . Scanalyzers . | . . . . . Garrison Access . | . . . . . Terminal Hacks 2 | . 1 . 1 . Record 1 | . . . 1 . Prototype ID Bank 1 | . 1 . . . Fabricator Hacks . | . . . . . Repair Station Hacks . | . . . . . Recycling Unit Hacks 2 | . 2 . . . Report Inventory 2 | . 2 . . . Scanalyzer . | . . . . . Garrison Access Hacks . | . . . . . Unauthorized Hacks 4 | . 4 . . . Terminals 4 | . 4 . . . Assimilate 3 | . 3 . . . Operators 1 | . 1 . . . Fabricators . | . . . . . Repair Stations . | . . . . . Recycling Units . | . . . . . Scanalyzers . | . . . . . Garrison Access . | . . . . . Data Cores Recovered . | . . . . . Used . | . . . . . Hacking Detections 7 | . 7 . . . Full Trace Events . | . . . . . Feedback Events . | . . . . . Feedback Blocked . | . . . . . Robot Schematics Acquired . | . . . . . Robots Built . | . . . . . Matter . | . . . . . Time . | . . . . . Total Robot Build Rating . | . . . . . Part Schematics Acquired . | . . . . . Parts Built . | . . . . . Matter . | . . . . . Time . | . . . . . Total Part Build Rating . | . . . . . Parts Repaired . | . . . . . Time . | . . . . . Parts Recycled . | . . . . . Recycled Matter . | . . . . . Retrieved Matter . | . . . . . Retrieved Components . | . . . . . Parts Scanalyzed . | . . . . . Part Schematics Acquired . | . . . . . Parts Damaged . | . . . . . Bothacking | -11 -10 -10 -10 -9 ------------ Run | Scr Mat Min Exi Min Used RIF Installer . | . . . . . Robots Hacked . | . . . . . Non-combat . | . . . . . Combat . | . . . . . Robot Hacks Applied . | . . . . . Relay Couplers Released . | . . . . . Robots Rewired . | . . . . . Allies Hacked . | . . . . . Hacks Repelled . | . . . . . Allies | -11 -10 -10 -10 -9 -------- Run | Scr Mat Min Exi Min Total Allies 6 | . 2 4 . . Largest Group 4 | . 1 4 2 2 Highest-Rated Group 71 | . 10 71 24 24 Highest-Rated Ally 31 | . 10 31 16 16 Total Orders . | . . . . . Ally Attacks 25 | . . 15 . 10 Total Damage 309 | . . 203 . 106 Kills 7 | . . 3 . 4 Allies Corrupted . | . . . . . Allies Melted . | . . . . . Intel | -11 -10 -10 -10 -9 ------- Run | Scr Mat Min Exi Min Robot Analysis Total . | . . . . . Derelict Logs Recovered 3 | . . 1 . 2 Drone Launches . | . . . . . Drone Recoveries . | . . . . . Exploration | -11 -10 -10 -10 -9 ------------- Run | Scr Mat Min Exi Min Turns Passed 3353 | 78 1321 1104 218 632 Spaces Moved 1890 | 54 725 632 137 342 Core 3 | 2 1 . . . Treads 1776 | . 665 632 137 342 Legs 111 | 52 59 . . . Wheels . | . . . . . Hover . | . . . . . Flight . | . . . . . Fastest Speed 50 | 50 120 160 160 160 Average Speed 157 | 117 156 160 160 160 Slowest Speed 250 | 120 250 160 160 160 Overloaded Moves . | . . . . . Propulsion Burnouts . | . . . . . Robots Hopped . | . . . . . Cave-ins Triggered . | . . . . . Exploration Rate (%) 63 | 5 88 99 48 76 Regions Visited 4 Branch Regions 3 Pre-discovered Areas 1 | . . . . 1 Known Exits Taken . | . . . . . Unknown Exits Taken 4 | 1 1 1 1 . Scrap Searched 1 | . . 1 . . Spaces Dug . | . . . . . Terrain Destroyed 147 | . . 61 . 86 Melee . | . . . . . Projectile 1 | . . . . 1 AOE 146 | . . 61 . 85 Terrain Rammed . | . . . . . Walls Destroyed . | . . . . . Machines Disabled . | . . . . . Actions | -11 -10 -10 -10 -9 --------- Run | Scr Mat Min Exi Min Total 2158 | 65 835 716 136 406 Wait 140 | . 33 67 . 40 Move 1886 | 53 724 631 136 342 Hop . | . . . . . Pick Up 27 | 6 17 3 . 1 Fast Attach 10 | 6 3 1 . . Attach 4 | . . . . 4 Detach 2 | . 2 . . . Swap 4 | . 4 . . . Drop 17 | . 12 4 . 1 Fire 67 | . 40 10 . 17 Melee . | . . . . . Ram . | . . . . . Kick . | . . . . . Crush 1 | . . . . 1 Escape Stasis . | . . . . . Rewire . | . . . . . Trap . | . . . . . Miscellaneous . | . . . . . Route ------- -11/Scrapyard -10/Materials (discovered 5 exits: [*Mat x3] / [*Min x2]) -10/Mines (discovered 3 exits: [*Mat x2] / *Exi) -10/Exiles -9/Mines (discovered 2 exits: *Mat x2) History --------- Turn | Location | Event 8 | -11/Scrapyard | Discovered new exit (range 15) 79 | -11/Scrapyard | Entered Materials 314 | -10/Materials | Build established: Mutant 320 | -10/Materials | Discovered new exit (range 15) 433 | -10/Materials | Discovered new exit (range 8) 602 | -10/Materials | Discovered new exit (range 11) 886 | -10/Materials | Discovered new exit (range 15) 1122 | -10/Materials | Discovered new exit (range 10) 1400 | -10/Materials | Entered Mines 1451 | -10/Mines | Met a Derelict bent on vengeance 1739 | -10/Mines | Received a Mining Laser from a helpful Derelict 1837 | -10/Mines | Assisted by bots powering up and referring to "LRC-V3" 1947 | -10/Mines | Discovered new exit (range 7) 2088 | -10/Mines | Discovered new exit (range 11) 2130 | -10/Mines | A weapon hastily lodged in a ceiling crevice suddenly fell to the ground 2312 | -10/Mines | Learned Materials terminal intel 2344 | -10/Mines | Deemed a non-threat by the Exiles lab entrance 2344 | -10/Mines | Discovered new exit (range 5) 2504 | -10/Mines | Entered Exiles 2504 | -10/Exiles | Found Exiles lab abandoned 2504 | -10/Exiles | Accompanied by 2 allies 2705 | -10/Exiles | Discovered new exit (range 10) 2722 | -10/Exiles | Entered Mines 2722 | -9/Mines | Accompanied by 2 allies 2730 | -9/Mines | Learned location of Storage (-8) 2836 | -9/Mines | Discovered new exit (range 10) 2975 | -9/Mines | Received a Rocket Launcher from a helpful Derelict 3111 | -9/Mines | Identified exit to Materials 3305 | -9/Mines | Assembled infested the area 3310 | -9/Mines | Assisted by a Guerilla fighting off Assembled 3334 | -9/Mines | Core integrity fell below 50% 3345 | -9/Mines | Core integrity fell below 20% 3354 | -9/Mines | Destroyed by D-53 Grenadier with Mini Grenade Launcher Last Messages --------------- 03335_ Destroyed Asb. Hover Unit. 03335_ Destroyed Asb. F-torch. 03335_ as-60202 destroyed. 03335_ Imp. Treads destroyed. 03335_ Destroyed Imp. Treads. 03335_ as-40929 destroyed. 03335_ as-26894 destroyed. 03335_ as-49085 destroyed. 03336_ Grenade Launcher destroyed. 03336_ as-58192 destroyed. 03341_ K-01 Serf collects debris. 03342_ as-09489 destroyed. 03343_ Assault Rifle destroyed. 03346_ D-53 Grenadier knocked back. 03347_ The unstable cave ceiling collapses. 03349_ D-53 Grenadier knocked back. 03350_ Hrd. Light Armor Plating destroyed. 03353_ K-01 Serf collects debris. 03354_ The unstable cave ceiling collapses. [Achievement: Back For More] Map ----- +----------------------------------------------------+ | ??????????????????????????????????????????????# | | ??????????????????????????????????????????????# | | ??????????????????????????????????????????????# | | ??????????????????????????????????????????????# | | ??????????????????????????????????????????????# | | ??????????????????????????????????????????????# | | ??????????????????????????????????????????????# | | ??????????????????????????????????????????????# | | ??????????????????????????????????????????????? | | ??????????????????????????????????????????????? | | ??????????????????????????????????????????????? | | ??????????????????????????????????????????????? | | ??????????????????????????????????????????????? | | ??????????????????????????????????????????????? | | ??????????????????????????????????????????????? | | ??????????????????????????????????????????????? | | ???????????????#??????????????????????????????? | | ???????????????# ?????????????????????????????? | | ???????????????# ##???????????????????????????? | | ???????????????# ;##?????????????????????????? | | ??????????????## ######????????????????????? | | ???????????## # ##???????????????????? | | ???????????# % ##??????????????????? | | ??????????????# #??????????????????? | | ?#? ?#???#????# # ##???????????